[Event "Vienna Championship-B 2022"]
[Site "Vienna"]
[Date "2022.09.22"]
[Round "6.1"]
[White "Andresen, Erik"]
[Black "Wagner, Leopold Franziskus"]
[Result "1/2-1/2"]
[ECO "B12"]
[WhiteElo "1879"]
[BlackElo "2201"]
[Annotator "TA"]
[PlyCount "64"]
[EventDate "2022.09.17"]
[EventType "swiss"]
[EventCountry "AUT"]
[SourceTitle "playchess.com"]
[Source "ChessBase"]
[SourceQuality "1"]
[TimeControl "5400+30"]

{[%evp 11,64,8,12,0,16,19,24,18,33,20,18,18,59,56,69,60,55,55,61,55,56,48,48,0,0,0,0,0,0,0,0,20,18,0,21,-31,20,-106,0,-72,0,0,0,0,0,0,174,26,26,0,7,0,19,-62,0]} 1. e4 {[%emt 0:02:22]} c6 {[%emt 0:00:05]} 2. d4 {[%emt 0:00:35]} d5 {[%emt 0:00:01]} 3. e5 {[%emt 0:00:05]} Bf5 {[%emt 0:00:06]} 4. h4 {[%emt 0:00:06]} h5 {[%emt 0:00:04]} 5. Bd3 {[%emt 0:00:05]} Bxd3 {[%emt 0:00:19]} 6. Qxd3 {[%emt 0:00:09]} e6 {[%emt 0:00:18]} 7. Bg5 {[%emt 0:00:06] B12: Caro-Kann: Advance Variation.} Be7 {[%emt 0:01:33]} 8. Nf3 {[%emt 0:00:36]} Nh6 {[%emt 0:01:33]} 9. Nc3 {[%emt 0:00:07] White has an edge.} Nd7 {[%emt 0:01:46]} 10. Ne2 {[%emt 0:00:16]} Nf5 {[%emt 0:03:31]} 11. Ng3 {[%emt 0:00:19]} g6 {[%emt 0:04:39]} 12. Nxf5 {[%emt 0:00:18]} gxf5 {[%emt 0:02:55]} 13. O-O {[%emt 0:00:14] [#]} Bxg5 $146 {[%emt 0:03:08]} ({Predecessor:} 13... Nf8 14. g3 Nh7 15. Bd2 Rg8 16. Kh2 Kd7 17. b3 Rg4 18. Rac1 b5 19. c4 a6 20. cxd5 cxd5 21. Rc2 Rc8 22. Rfc1 Rxc2 23. Qxc2 Qb6 24. Qc8# {1-0 (24) Tolhurst,P (2185)-Naldrett,G ICCF email 2016}) 14. Nxg5 {[%emt 0:00:45]} Qe7 {[%emt 0:00:53]} 15. Rfe1 {[%emt 0:05:26] White is more active.} O-O-O {[%emt 0:01:24]} 16. b4 {[%emt 0:11:11]} Nb6 {[%emt 0:01:34]} 17. b5 {[%emt 0:03:50]} (17. a4 $14 {should be considered.}) 17... cxb5 $11 {[%emt 0:00:49]} 18. Reb1 {[%emt 0:14:24]} Nc4 {[%emt 0:09:06]} 19. Rxb5 {[%emt 0:00:33]} Rd7 {[%emt 0:02:14]} 20. a4 {[%emt 0:03:43][%cal Ba2a4,Ba4a5][%mdl 32]} Kb8 {[%emt 0:02:45]} 21. a5 {[%emt 0:03:57]} Rc7 {[%emt 0:00:47]} 22. Kh2 {[%emt 0:07:45]} Rg8 {[%emt 0:03:42]} 23. g3 {[%emt 0:06:37]} (23. a6 $11) 23... Ka8 {[%emt 0:01:13]} (23... a6 $15 24. Rb3 Rxg5 25. hxg5 Qxg5) 24. Nf3 {[%emt 0:03:31]} (24. a6 $11) 24... Qf8 {[%emt 0:04:11]} ({Black should try} 24... a6 $17 25. Rbb1 f6 26. exf6 Qxf6) 25. Nd2 {[%emt 0:03:44] [#]} (25. a6 $11 b6 26. Ng5) 25... Nxd2 {[%emt 0:16:39]} (25... a6 $1 $17 {[%cal Ra6b5]} 26. Rbb1 Nxd2 27. Qxd2 f6 28. exf6 Qxf6) 26. Qxd2 {[%emt 0:00:11]} Qc8 {[%emt 0:04:40]} 27. Rb2 {[%emt 0:05:05]} Rc4 {[%emt 0:02:29]} 28. Rab1 {[%emt 0:02:33]} Rd8 $2 {[%emt 0:04:34]} (28... Rc7 $11 {and Black is okay.}) 29. Qd1 {[%emt 0:04:07]} (29. Rxb7 $18 {aiming for Qg5.} Qxb7 30. Rxb7 Kxb7 31. Qg5) 29... Rh8 {[%emt 0:02:22]} 30. Qd2 {[%emt 0:01:01]} Rc7 {[%emt 0:09:40]} 31. Kh3 {[%emt 0:01:32]} Qg8 {[%emt 0:01:22]} 32. Qb4 {[%emt 0:08:53]} (32. Qg5 $11) 32... Qf8 {[%emt 0:08:42] Weighted Error Value: White=0.32/Black=0.25 (precise)} (32... Qg4+ $15 33. Kh2 f4) 1/2-1/2

[Event "Vienna Championship-B 2022"]
[Site "Vienna"]
[Date "2022.09.22"]
[Round "6.2"]
[White "Obenaus, Paul"]
[Black "Bonk, Andras"]
[Result "0-1"]
[ECO "E11"]
[WhiteElo "1825"]
[BlackElo "2175"]
[Annotator "TA"]
[PlyCount "48"]
[EventDate "2022.09.17"]
[EventType "swiss"]
[EventCountry "AUT"]
[SourceTitle "playchess.com"]
[Source "ChessBase"]
[SourceQuality "1"]
[TimeControl "5400+30"]

{[%evp 10,48,24,20,20,20,27,25,20,15,27,20,27,0,0,0,0,0,0,-10,-14,-124,-122,-287,-282,-278,-283,-427,-276,-404,-402,-402,-382,-466,-447,-460,-359,-754,-502,-829,-793]} 1. d4 {[%emt 0:00:02]} Nf6 {[%emt 0:00:05]} 2. c4 {[%emt 0:00:04]} e6 {[%emt 0:00:04]} 3. Nf3 {[%emt 0:00:04]} Bb4+ {[%emt 0:00:06]} 4. Bd2 {[%emt 0:00:04]} a5 {[%emt 0:00:13]} 5. a3 {[%emt 0:00:14]} Bxd2+ {[%emt 0:01:23]} 6. Qxd2 {[%emt 0:01:18]} d5 {[%emt 0:00:36] E11: Bogo-Indian.} 7. Nc3 {[%emt 0:01:07]} O-O {[%emt 0:01:41]} 8. e3 {[%emt 0:00:48]} b6 {[%emt 0:00:35][%cal Bb7b6,Bb6c5,Bc5c4,Bc4d3,Bd3d2][%mdl 32] White has an edge.} 9. cxd5 {[%emt 0:02:41]} exd5 {[%emt 0:01:35]} 10. Bd3 {[%emt 0:01:36]} c5 {[%emt 0:01:58]} 11. dxc5 {[%emt 0:07:23]} bxc5 {[%emt 0:00:16]} 12. O-O {[%emt 0:01:21]} Bb7 {[%emt 0:08:18] [#]} 13. Rfd1 $146 {[%emt 0:07:32][%cal Od3c4]} ({Predecessor:} 13. Be2 Nbd7 14. b4 d4 15. exd4 axb4 16. Nb5 Nd5 17. axb4 cxb4 18. Nd6 Rxa1 19. Rxa1 {0-1 (38) Chkhaidze,N (2288)-Quparadze,G (2477) Tbilisi 2022}) 13... Qe7 {[%emt 0:07:39]} 14. Na4 {[%emt 0:06:20]} Bc6 {[%emt 0:13:35]} 15. Qc2 {[%emt 0:05:11] [#]} (15. Nc3 $11) 15... c4 $1 $17 {[%emt 0:02:26]} 16. Nd4 $2 {[%emt 0:19:53] Loses the game.} (16. Bxh7+ $17 {was worth a try.} Nxh7 17. Nb6) 16... Bxa4 $19 {[%emt 0:03:53]} ({Avoid the trap} 16... cxd3 $2 17. Rxd3 (17. Nxc6 $2 Qe6 $19) 17... Bxa4 18. Qxa4 $19) 17. Qxa4 {[%emt 0:00:19]} cxd3 {[%emt 0:00:23]} 18. b4 {[%emt 0:01:10]} (18. Rxd3 $142 Rc8 19. Rb3) 18... Qe8 {[%emt 0:14:37]} 19. b5 {[%emt 0:00:20]} (19. Qxe8 $142 Rxe8 20. b5) 19... Nbd7 {[%emt 0:00:30] [#] White must now prevent ...Nc5.} 20. Rac1 {[%emt 0:01:51] Prevents Nc5.} Ne4 {[%emt 0:04:50]} 21. Qb3 {[%emt 0:01:07]} d2 {[%emt 0:00:41]} 22. Rc7 {[%emt 0:03:16]} Rc8 {[%emt 0:02:19]} 23. b6 {[%emt 0:00:50]} (23. Rxc8 Qxc8 24. f3) 23... Ndc5 {[%emt 0:02:21]} 24. Qb2 {[%emt 0:08:49]} (24. Qc2 $142 Rxc7 25. bxc7) 24... Qa4 {[%emt 0:02:49] Weighted Error Value: White=1.08/Black=0.42} 0-1

[Event "Vienna Championship-B 2022"]
[Site "Vienna"]
[Date "2022.09.22"]
[Round "6.3"]
[White "Kummer, Helmut"]
[Black "Deak-Sala, Emilia"]
[Result "1/2-1/2"]
[ECO "E65"]
[WhiteElo "2203"]
[BlackElo "1787"]
[Annotator "TA"]
[PlyCount "71"]
[EventDate "2022.09.17"]
[EventType "swiss"]
[EventCountry "AUT"]
[SourceTitle "playchess.com"]
[Source "ChessBase"]
[SourceQuality "1"]
[TimeControl "5400+30"]

{[%evp 15,71,25,46,50,71,43,61,65,57,47,64,62,67,60,70,50,58,66,67,56,49,51,95,48,140,99,130,102,103,41,104,110,133,105,124,94,108,0,10,7,180,10,10,2,0,1,2,0,0,0,0,0,0,0,39,0,0,0]} 1. d4 {[%emt 0:00:16]} Nf6 {[%emt 0:00:41]} 2. c4 {[%emt 0:00:10]} g6 {[%emt 0:00:04]} 3. Nc3 {[%emt 0:00:13]} Bg7 {[%emt 0:00:06]} 4. Nf3 {[%emt 0:00:20]} d6 {[%emt 0:00:11]} 5. g3 {[%emt 0:00:12]} O-O {[%emt 0:00:11]} 6. Bg2 {[%emt 0:00:05]} c5 {[%emt 0:01:09]} 7. O-O {[%emt 0:10:42]} Na6 {[%emt 0:08:21]} 8. b3 {[%emt 0:01:39]} Bd7 {[%emt 0:04:33] has lost popularity (8...Bg4).} 9. Bb2 {[%emt 0:02:20] E65: King's Indian: Fianchetto: 6...c5 7 0-0 without d5 by White.} Qc8 {[%emt 1:19:44] [#]} 10. d5 $146 {[%emt 0:11:22]} ({Predecessor:} 10. Re1 Bh3 11. Bh1 Bg4 12. Qd2 Re8 13. Rad1 Rb8 14. Qc1 Nb4 15. dxc5 Qxc5 16. a3 Nc6 {½-½ (37) Szabo,B (2414)-Saric,S (2413) Bol 2014}) 10... Ne4 {[%emt 0:00:00]} 11. Qc1 {[%emt 0:00:10] White is slightly better.} ({Much weaker is} 11. Nxe4 Bxb2 12. Rb1 Bg7 $11) 11... Nxc3 {[%emt 0:00:00]} 12. Bxc3 {[%emt 0:00:05]} Bxc3 {[%emt 0:00:00]} 13. Qxc3 {[%emt 0:00:05]} Bh3 {[%emt 0:00:00]} 14. e4 {[%emt 0:01:21]} Nc7 {[%emt 0:00:00]} 15. Qe3 {[%emt 0:02:05]} Bxg2 {[%emt 0:00:00]} 16. Kxg2 {[%emt 0:00:07]} b5 {[%emt 0:00:00]} 17. Rac1 {[%emt 0:14:36]} a5 {[%emt 0:00:00]} 18. e5 {[%emt 0:01:21]} b4 {[%emt 0:00:00]} 19. Rfe1 {[%emt 0:00:33]} (19. h4 $16) 19... Kg7 {[%emt 0:00:00]} (19... f6 $1 $14) 20. h3 {[%emt 0:05:11]} a4 {[%emt 0:00:00]} 21. Qf4 {[%emt 0:03:42]} Qd7 {[%emt 0:00:00]} 22. Re3 {[%emt 0:03:05]} (22. h4 $16) 22... f6 {[%emt 0:00:00]} ({Black should try} 22... axb3 $14 23. axb3 f6) 23. exd6 $16 {[%emt 0:03:26]} exd6 {[%emt 0:00:00]} 24. Rce1 {[%emt 0:01:28] [#] Strongly threatening Re7+. White is more active.} Rfe8 {[%emt 0:00:00] Prevents Re7+.} 25. Nd2 {[%emt 0:00:20] Black must now prevent Ne4.} Re5 {[%emt 0:01:39]} 26. Nf3 {[%emt 0:00:55]} ({Much less strong is} 26. Rxe5 fxe5 27. Qh4 axb3 28. axb3 h6) (26. Ne4 $16 Ne8 27. g4) 26... Rxe3 {[%emt 0:01:19]} 27. Rxe3 {[%emt 0:00:15]} Re8 $2 {[%emt 0:00:44] [#]} (27... axb3 $11 28. axb3 Re8) 28. Rxe8 $2 {[%emt 0:04:00]} (28. bxa4 $1 $18 {a5 is the strong threat.} Ra8 29. Nh2) 28... Nxe8 $18 {[%emt 0:00:03][%mdl 4096] Endgame KQN-KQN} 29. Qe3 {[%emt 0:00:21] And now bxa4 would win.} axb3 {[%emt 0:00:40]} 30. axb3 {[%emt 0:00:05]} Kg8 {[%emt 0:03:05]} 31. Nd2 {[%emt 0:01:30]} f5 {[%emt 0:01:22]} 32. Nf3 {[%emt 0:00:27]} Nf6 {[%emt 0:00:37]} 33. Ng5 {[%emt 0:00:11]} Qe8 {[%emt 0:00:48]} 34. Ne6 {[%emt 0:01:48]} Qe7 {[%emt 0:00:24]} 35. Kh2 {[%emt 0:08:47]} Ne8 {[%emt 0:00:34]} 36. Qh6 {[%emt 0:12:46] Weighted Error Value: White=0.32/Black=0.26 (precise)} 1/2-1/2

[Event "Vienna Championship-B 2022"]
[Site "Vienna"]
[Date "2022.09.22"]
[Round "6.5"]
[White "Bytyqi, Kujtim"]
[Black "Wickramasinghe, Nathaniel"]
[Result "1-0"]
[ECO "A01"]
[WhiteElo "1862"]
[BlackElo "1760"]
[Annotator "NA RC COMBH"]
[PlyCount "103"]
[EventDate "2022.09.17"]
[EventType "swiss"]
[EventCountry "AUT"]
[SourceTitle "playchess.com"]
[Source "ChessBase"]
[SourceQuality "1"]
[TimeControl "5400+30"]

1. b3 {[%emt 0:00:13]} e5 {[%emt 0:00:22]} 2. Bb2 {[%emt 0:00:05]} Nc6 {[%emt 0:00:06]} 3. e3 {[%emt 0:00:08]} d5 {[%emt 0:00:13]} 4. Bb5 {[%emt 0:00:05]} Bd6 {[%emt 0:01:04]} 5. f4 {[%emt 0:00:07]} Qe7 {[%emt 0:01:13]} 6. Nf3 {[%emt 0:00:39]} Bg4 {[%emt 0:01:52]} 7. fxe5 {[%emt 0:06:14]} Bxe5 {[%emt 0:06:53]} 8. Bxe5 {[%emt 0:02:23]} Bxf3 {[%emt 0:00:29]} 9. Qxf3 {[%emt 0:00:14]} Qxe5 {[%emt 0:00:09]} 10. Nc3 {[%emt 0:01:07]} Nf6 {[%emt 0:00:29]} 11. O-O {[%emt 0:00:18]} O-O {[%emt 0:00:17]} 12. Ne2 {[%emt 0:05:26]} Ne7 {[%emt 0:02:00]} 13. Ng3 {[%emt 0:02:09]} Ne4 {[%emt 0:01:52]} 14. d4 {[%emt 0:05:08]} Qe6 {[%emt 0:01:14]} 15. Nh5 {[%emt 0:02:24]} Nd2 {[%emt 0:08:31]} 16. Qg3 {[%emt 0:02:22]} Qg6 {[%emt 0:00:12]} 17. Qh4 {[%emt 0:14:28]} Nxf1 {[%emt 0:06:13]} 18. Rxf1 {[%emt 0:00:11]} Nf5 {[%emt 0:07:33]} 19. Rxf5 {[%emt 0:01:07]} Qxf5 {[%emt 0:08:33]} 20. Bd3 {[%emt 0:00:10]} Qxh5 {[%emt 0:00:23]} 21. Qxh5 {[%emt 0:00:09]} f5 {[%emt 0:00:06]} 22. g4 {[%emt 0:00:38]} g6 {[%emt 0:00:10]} 23. Qg5 {[%emt 0:00:18]} fxg4 {[%emt 0:01:00]} 24. Qxd5+ {[%emt 0:00:11]} Kg7 {[%emt 0:01:05]} 25. Qxb7 {[%emt 0:01:05]} Rae8 {[%emt 0:00:29]} 26. Qxc7+ {[%emt 0:01:30]} Rf7 {[%emt 0:00:08]} 27. Qg3 {[%emt 0:00:24]} h5 {[%emt 0:00:15]} 28. Qd6 {[%emt 0:00:59]} Rf6 {[%emt 0:04:39]} 29. Qd7+ {[%emt 0:00:15]} Kf8 {[%emt 0:00:06]} 30. e4 {[%emt 0:00:37]} g3 {[%emt 0:02:08]} 31. hxg3 {[%emt 0:00:55]} g5 {[%emt 0:01:41]} 32. e5 {[%emt 0:00:18]} Rf3 {[%emt 0:01:44]} 33. Kg2 {[%emt 0:01:42]} g4 {[%emt 0:00:38]} 34. Bg6 {[%emt 0:00:52]} Re7 {[%emt 0:00:44]} 35. Qd8+ {[%emt 0:00:25]} Kg7 {[%emt 0:00:05]} 36. Qxe7+ {[%emt 0:00:29]} Kxg6 {[%emt 0:00:05]} 37. d5 {[%emt 0:00:53]} h4 {[%emt 0:00:56]} 38. gxh4 {[%emt 0:00:48]} Rf7 {[%emt 0:00:46]} 39. Qg5+ {[%emt 0:00:14]} Kh7 {[%emt 0:00:07]} 40. e6 {[%emt 0:00:18]} Rg7 {[%emt 0:00:18]} 41. Qh5+ {[%emt 0:00:40]} Kg8 {[%emt 0:00:06]} 42. Qe8+ {[%emt 0:00:04]} Kh7 {[%emt 0:00:05]} 43. e7 {[%emt 0:00:07]} Rg8 {[%emt 0:00:30]} 44. Qf7+ {[%emt 0:00:25]} Kh8 {[%emt 0:00:29]} 45. e8=Q {[%emt 0:00:43]} Rxe8 {[%emt 0:00:09]} 46. Qxe8+ {[%emt 0:00:05]} Kh7 {[%emt 0:00:07]} 47. d6 {[%emt 0:00:11]} a5 {[%emt 0:00:11]} 48. d7 {[%emt 0:00:05]} a4 {[%emt 0:00:04]} 49. d8=Q {[%emt 0:00:05]} a3 {[%emt 0:00:07]} 50. Qde7+ {[%emt 0:00:33]} Kh6 {[%emt 0:00:07]} 51. Qc6+ {[%emt 0:00:26]} Kh5 {[%emt 0:00:05]} 52. Qg5# {[%emt 0:00:07]} 1-0

[Event "Vienna Championship-B 2022"]
[Site "Vienna"]
[Date "2022.09.22"]
[Round "6.7"]
[White "Schwabeneder, Alois"]
[Black "Pavlov, Alexander"]
[Result "1/2-1/2"]
[ECO "C77"]
[WhiteElo "1911"]
[BlackElo "1751"]
[Annotator "TA"]
[PlyCount "46"]
[EventDate "2022.09.17"]
[EventType "swiss"]
[EventCountry "AUT"]
[SourceTitle "playchess.com"]
[Source "ChessBase"]
[SourceQuality "1"]
[TimeControl "5400+30"]

{[%evp 9,46,24,24,-5,15,-22,-27,-87,0,-55,20,-21,10,-15,-27,-20,24,-28,0,-1,25,18,20,23,24,8,14,19,34,33,48,26,45,50,63,50,48,15,25]} 1. e4 {[%emt 0:00:03]} e5 {[%emt 0:00:06]} 2. Nf3 {[%emt 0:00:18]} Nc6 {[%emt 0:00:04]} 3. Bb5 {[%emt 0:00:43]} a6 {[%emt 0:00:55]} 4. Ba4 {[%emt 0:00:07]} Nf6 {[%emt 0:00:20]} 5. d3 {[%emt 0:00:55]} d6 {[%emt 0:00:29]} 6. Bg5 {[%emt 0:01:19] C77: Ruy Lopez: 3...a6 4 Ba4 Nf6, unusual lines.} h6 {[%emt 0:00:34]} 7. Bh4 {[%emt 0:00:13]} Be7 {[%emt 0:00:15]} 8. O-O {[%emt 0:01:06] [#]} (8. a3 $11 {remains equal.}) 8... Bg4 {[%emt 0:00:44]} (8... g5 $1 $17 {[%cal Rg5h4]} 9. Bg3 h5) 9. Nbd2 {[%emt 0:00:13]} (9. h3 $11 Bd7 10. Nc3) 9... O-O {[%emt 0:00:23]} ({Black should play} 9... g5 $1 $15 10. Bg3 Bd7) 10. c3 {[%emt 0:00:13]} Nh7 {[%emt 0:00:57]} (10... Nh5 $5 {[%cal Re7h4]} 11. h3 Bc8 12. Bxe7 Qxe7 $11) 11. Bxe7 {[%emt 0:03:04] [#]} Nxe7 $146 {[%emt 0:01:04]} ({Predecessor:} 11... Qxe7 12. h3 Bh5 13. g4 Bg6 14. Bb3 Ng5 15. Nxg5 Qxg5 16. Nf3 Qf4 17. Nh4 Kh7 {1-0 (43) Ivanov,Y (2041)-Orekhovsky,V (2067) Zhukovsky 2010}) 12. Qe1 {[%emt 0:00:30]} f5 {[%emt 0:02:15]} 13. h3 {[%emt 0:01:55]} (13. exf5 $142 Bxf5 14. d4) 13... Bxf3 {[%emt 0:02:34]} (13... fxe4 {is more complex.} 14. Qxe4 Rf4 15. Bb3+ Kh8) 14. Nxf3 {[%emt 0:00:07]} f4 {[%emt 0:00:23]} 15. d4 {[%emt 0:00:41]} Ng6 {[%emt 0:00:41]} 16. Rd1 {[%emt 0:00:21]} Nh4 {[%emt 0:06:08]} 17. Qe2 {[%emt 0:01:32]} ({Much weaker is} 17. dxe5 Nxf3+ 18. gxf3 Qh4 $15) 17... Nxf3+ {[%emt 0:00:25]} 18. Qxf3 {[%emt 0:00:49] Strongly threatening dxe5.} Ng5 {[%emt 0:00:29]} 19. Qg4 {[%emt 0:00:41]} Qf6 {[%emt 0:10:33]} 20. h4 {[%emt 0:11:08]} Nf7 {[%emt 0:10:56]} (20... Nxe4 $2 21. Rfe1 $18) 21. g3 {[%emt 0:09:29]} g5 {[%emt 0:09:02]} 22. Bb3 {[%emt 0:05:59] Threatens to win with dxe5.} Kh7 {[%emt 0:04:27]} 23. h5 {[%emt 0:02:42]} Rad8 {[%emt 0:04:10] Weighted Error Value: White=0.26 (precise) /Black=0.23 (precise)} 1/2-1/2

[Event "Vienna Championship-B 2022"]
[Site "Vienna"]
[Date "2022.09.22"]
[Round "6.8"]
[White "Ginther, Tobias"]
[Black "Pantelic, Slobodan"]
[Result "1-0"]
[ECO "B41"]
[WhiteElo "1766"]
[BlackElo "1596"]
[Annotator "NA RC COMBH"]
[PlyCount "101"]
[EventDate "2022.09.17"]
[EventType "swiss"]
[EventCountry "AUT"]
[SourceTitle "playchess.com"]
[Source "ChessBase"]
[SourceQuality "1"]
[TimeControl "5400+30"]

1. e4 {[%emt 0:01:49]} c5 {[%emt 0:01:33]} 2. Nf3 {[%emt 0:00:08]} e6 {[%emt 0:00:02]} 3. d4 {[%emt 0:00:11]} cxd4 {[%emt 0:00:02]} 4. Nxd4 {[%emt 0:00:15]} a6 {[%emt 0:00:03]} 5. c4 {[%emt 0:01:38]} d6 {[%emt 0:00:04]} 6. Be3 {[%emt 0:01:41]} Be7 {[%emt 0:00:03]} 7. Nc3 {[%emt 0:00:49]} Nf6 {[%emt 0:00:04]} 8. Be2 {[%emt 0:01:54]} Nbd7 {[%emt 0:00:05]} 9. b4 {[%emt 0:07:58]} Qc7 {[%emt 0:00:41]} 10. Qb3 {[%emt 0:05:44]} Ne5 {[%emt 0:01:17]} 11. f3 {[%emt 0:02:34]} Bd7 {[%emt 0:00:06]} 12. Rc1 {[%emt 0:11:00]} O-O {[%emt 0:00:09]} 13. O-O {[%emt 0:02:44]} Rac8 {[%emt 0:00:07]} 14. Na4 {[%emt 0:02:48]} Qb8 {[%emt 0:00:54]} 15. Nb6 {[%emt 0:02:17]} Rc7 {[%emt 0:00:02]} 16. a4 {[%emt 0:05:21]} Rd8 {[%emt 0:03:10]} 17. a5 {[%emt 0:02:13]} Nc6 {[%emt 0:00:48]} 18. Nc2 {[%emt 0:02:18]} Be8 {[%emt 0:00:19]} 19. Kh1 {[%emt 0:02:54]} Nd7 {[%emt 0:00:06]} 20. Rcd1 {[%emt 0:01:28]} Nce5 {[%emt 0:00:14]} 21. f4 {[%emt 0:04:38]} Nc6 {[%emt 0:00:55]} 22. g4 {[%emt 0:03:38]} Nf6 {[%emt 0:00:05]} 23. Bd3 {[%emt 0:03:02]} Nxg4 {[%emt 0:00:11]} 24. Bc1 {[%emt 0:00:47]} Bf8 {[%emt 0:00:50]} 25. Rd2 {[%emt 0:00:33]} Ne7 {[%emt 0:00:29]} 26. Rg2 {[%emt 0:01:13]} Nf6 {[%emt 0:00:16]} 27. Bb2 {[%emt 0:01:54]} Ng6 {[%emt 0:00:31]} 28. Bxf6 {[%emt 0:01:28]} gxf6 {[%emt 0:00:05]} 29. f5 {[%emt 0:01:29]} Bc6 {[%emt 0:00:02]} 30. fxg6 {[%emt 0:01:21]} hxg6 {[%emt 0:00:04]} 31. b5 {[%emt 0:01:02]} axb5 {[%emt 0:00:21]} 32. cxb5 {[%emt 0:00:15]} Bd7 {[%emt 0:00:15]} 33. Rxf6 {[%emt 0:00:30]} Bg7 {[%emt 0:00:01]} 34. Rf3 {[%emt 0:01:09]} Rc5 {[%emt 0:00:02]} 35. Rgf2 {[%emt 0:01:52]} Be8 {[%emt 0:00:06]} 36. Bc4 {[%emt 0:02:01]} d5 {[%emt 0:00:17]} 37. exd5 {[%emt 0:00:39]} exd5 {[%emt 0:01:00]} 38. Bxd5 {[%emt 0:00:52]} Rdxd5 {[%emt 0:01:05]} 39. Nxd5 {[%emt 0:00:36]} Qe5 {[%emt 0:00:15]} 40. Nf6+ {[%emt 0:03:59]} Bxf6 {[%emt 0:00:08]} 41. Rxf6 {[%emt 0:00:26]} Rxb5 {[%emt 0:00:05]} 42. Qe3 {[%emt 0:04:47]} Bc6+ {[%emt 0:00:02]} 43. Kg1 {[%emt 0:00:35]} Rb1+ {[%emt 0:00:06]} 44. Rf1 {[%emt 0:01:04]} Rxf1+ {[%emt 0:00:13]} 45. Rxf1 {[%emt 0:00:30]} Qd5 {[%emt 0:00:24]} 46. Qg3 {[%emt 0:01:03]} Qxa5 {[%emt 0:00:44]} 47. Ne3 {[%emt 0:00:53]} Qc5 {[%emt 0:00:43]} 48. Qf4 {[%emt 0:00:30]} Qf8 {[%emt 0:01:14]} 49. Ng4 {[%emt 0:00:46]} Qc5+ {[%emt 0:00:06]} 50. Qf2 {[%emt 0:00:26]} Qg5 {[%emt 0:00:06]} 51. Qxf7+ {[%emt 0:14:18]} 1-0

[Event "Vienna Championship-B 2022"]
[Site "Vienna"]
[Date "2022.09.22"]
[Round "6.10"]
[White "Paseka, Christian"]
[Black "Mayrhuber, Franz"]
[Result "1-0"]
[ECO "A40"]
[WhiteElo "1568"]
[BlackElo "1718"]
[Annotator "NA COMBH"]
[PlyCount "59"]
[EventDate "2022.09.17"]
[EventType "swiss"]
[EventCountry "AUT"]
[SourceTitle "playchess.com"]
[Source "ChessBase"]
[SourceQuality "1"]
[TimeControl "5400+30"]

1. c4 {[%emt 0:00:30]} Nc6 {[%emt 0:00:30]} 2. d4 {[%emt 0:00:30]} e6 {[%emt 0:00:30]} 3. g3 {[%emt 0:00:30]} Nf6 {[%emt 0:00:30]} 4. a3 {[%emt 0:00:30]} d5 {[%emt 0:00:30]} 5. cxd5 {[%emt 0:00:30]} Qxd5 {[%emt 0:00:30]} 6. Nf3 {[%emt 0:00:30]} Be7 {[%emt 0:00:30]} 7. Nc3 {[%emt 0:00:30]} Qd8 {[%emt 0:00:30]} 8. Bg2 {[%emt 0:00:30]} O-O {[%emt 0:00:30]} 9. O-O {[%emt 0:00:30]} h6 {[%emt 0:00:30]} 10. e4 {[%emt 0:00:30]} b6 {[%emt 0:00:30]} 11. Re1 {[%emt 0:00:30]} Bb7 {[%emt 0:00:30]} 12. e5 {[%emt 0:00:30]} Nd5 {[%emt 0:00:30]} 13. Nxd5 {[%emt 0:00:30]} Qxd5 {[%emt 0:00:30]} 14. Be3 {[%emt 0:00:30]} Rfd8 {[%emt 0:00:30]} 15. Rc1 {[%emt 0:00:30]} Rac8 {[%emt 0:00:30]} 16. Qc2 {[%emt 0:00:30]} Nb8 {[%emt 0:00:30]} 17. Nh4 {[%emt 0:00:30]} Qxd4 {[%emt 0:00:30]} 18. Bxd4 {[%emt 0:00:30]} Bxg2 {[%emt 0:00:30]} 19. Nxg2 {[%emt 0:00:30]} Rxd4 {[%emt 0:00:30]} 20. Red1 {[%emt 0:00:30]} Rg4 {[%emt 0:00:30]} 21. h3 {[%emt 0:00:30]} Rg5 {[%emt 0:00:30]} 22. Qe4 {[%emt 0:00:30]} Bc5 {[%emt 0:00:30]} 23. b4 {[%emt 0:00:30]} Bf8 {[%emt 0:00:30]} 24. Rd3 {[%emt 0:00:30]} c5 {[%emt 0:00:30]} 25. Rcd1 {[%emt 0:00:30]} Nc6 {[%emt 0:00:30]} 26. f4 {[%emt 0:00:30]} Rg6 {[%emt 0:00:30]} 27. Nh4 {[%emt 0:00:30]} cxb4 {[%emt 0:00:30]} 28. Nxg6 {[%emt 0:00:30]} fxg6 {[%emt 0:00:30]} 29. Qxg6 {[%emt 0:00:30]} bxa3 {[%emt 0:00:30]} 30. Qxe6+ {[%emt 0:00:30]} 1-0